Cogmind - Beta 13 @@@ ROGUE MODE // 2024.06.05 @ 13:22:04 Player: SovietPaperclip Result: Self-destructed Performance ------------- Evolutions (2) 1000 Regions Visited (5) 1000 Robots Destroyed (41) 205 Value Destroyed (1157) 1157 Prototype IDs (1) 20 Alien Tech Used (0) 0 Bonus (95) 95 TOTAL SCORE: 3477 Bonus ------- Follower Combat Kills 95 Cogmind --------- Core Integrity 416/550 Matter 229/300 Energy 160/160 System Corruption 5% Temperature Cool (11) Movement Flying (103) Ox1 Location -8/Materials Parts ------- > --- POWER (1) -------- Light Nuclear Core > --- PROPULSION (4) --- Improved Flight Unit Improved Flight Unit Cesium-ion Thruster Cesium-ion Thruster > --- UTILITY (4) ------ Large Storage Unit Structural Scanner Signal Interpreter > --- WEAPON (2) ------- Katana > --- INVENTORY (15) --- Cesium-ion Thruster Cesium-ion Thruster High-capacity Matter Pod (87) Machine Analyzer Improved Targeting Computer Advanced Targeting Computer ECM Suite Hardened Medium Armor Plating Hardlight Generator System Shield Recalibrator EM Pulse Cannon EM Pulse Cannon Ion Cannon Peak State ------------ > --- POWER ------------ Light Deuterium Engine > --- PROPULSION ------- Improved Flight Unit Improved Flight Unit Cesium-ion Thruster Cesium-ion Thruster > --- UTILITY ---------- Large Storage Unit Structural Scanner Hardened Medium Armor Plating Hardlight Generator > --- WEAPON ----------- Ion Cannon > --- INVENTORY -------- High-capacity Matter Pod Machine Analyzer Improved Sensor Array Signal Interpreter Improved Targeting Computer System Shield Recalibrator EM Pulse Cannon EM Pulse Cannon [Rating: 28] Favorites ----------- Power Ion Engine Engine Ion Engine Power Core Light Nuclear Core Propulsion Light Treads Treads Light Treads Wheel Wheel Flight Unit Improved Flight Unit Utility Large Storage Unit Device Seismic Detector Storage Large Storage Unit Processor Signal Interpreter Protection Hardened Medium Armor Plating Weapon Assault Rifle Energy Cannon EM Pulse Cannon Ballistic Gun Assault Rifle Ballistic Cannon Assault Cannon Launcher Grenade Launcher Slashing Weapon Katana Build | -11 -10 -10 -10 -9 -8 ------- Run | Yrd Mat Min Exi Min Mat Slots Evolved 4 | . . . . . 4 Power . | . . . . . . Propulsion 2 | . . . . . 2 Utility 2 | . . . . . 2 Weapon . | . . . . . . Parts Attached 43 | 6 3 . . 2 32 Power 5 | 1 . . . . 4 Engine 4 | 1 . . . . 3 Core 1 | . . . . . 1 Reactor . | . . . . . . Propulsion 8 | 2 . . . . 6 Treads 3 | 2 . . . . 1 Leg . | . . . . . . Wheel 1 | . . . . . 1 Hover . | . . . . . . Flight 4 | . . . . . 4 Utility 12 | 1 3 . . . 8 Device 5 | . 1 . . . 4 Storage 3 | 1 2 . . . . Processor 1 | . . . . . 1 Hackware . | . . . . . . Protection 3 | . . . . . 3 Artifact . | . . . . . . Weapon 18 | 2 . . . 2 14 Energy Gun . | . . . . . . Energy Cannon 6 | . . . . . 6 Ballistic Gun 5 | 2 . . . 1 2 Ballistic Cannon 3 | . . . . . 3 Launcher 3 | . . . . 1 2 Special Weapon . | . . . . . . Impact Weapon . | . . . . . . Slashing Weapon 1 | . . . . . 1 Piercing Weapon . | . . . . . . Special Melee Weapon . | . . . . . . Unidentified Prototypes . | . . . . . . Corrupted Parts 1 | . . . . . 1 System Corruption 5 | . . . . . 5 Parts Lost 12 | . . . . 1 11 Power 2 | . . . . . 2 Propulsion 4 | . . . . 1 3 Utility 2 | . . . . . 2 Weapon 4 | . . . . . 4 Highest Loss Streak 4 | . . . . 1 4 To Critical Strikes . | . . . . . . Average Slot Usage (%) 85 | . 88 100 100 98 68 Engine 11 | . 14 14 14 14 8 Treads 17 | . 28 28 28 26 1 Wheel 2 | . . . . . 6 Flight 1 | . . . . . 3 Device 14 | . 2 14 14 14 18 Storage 11 | . 14 14 14 14 9 Protection 2 | . . . . . 6 Energy Cannon 1 | . . . . . 2 Ballistic Gun 17 | . 28 28 28 26 1 Ballistic Cannon 2 | . . . . . 5 Launcher 2 | . . . . 1 4 Naked Turns . | . . . . . . Heaviest Build 51 | 14 30 30 30 31 51 Greatest Support 40 | 40 40 40 40 40 40 Greatest Overweight (x) 7 | . . . . 1 7 Average Overweight (x) 1 | . . . . . 3 Largest Inventory Capacity 15 | 8 15 15 15 15 15 Average Capacity 14 | 7 10 15 15 15 15 Most Carried 15 | 2 8 7 7 7 15 Average Carried 8 | 1 4 7 7 7 12 Final Capacity 15 | 8 15 15 15 15 15 Final Carried 14 | 2 7 7 7 7 14 Class Distribution -------------------- 100% | Mutant Dominant Class ---------------- Mutant | -10/Materials Mutant | -10/Mines Mutant | -10/Exiles Mutant | -9/Mines Mutant | -8/Materials Resources | -11 -10 -10 -10 -9 -8 ----------- Run | Yrd Mat Min Exi Min Mat Matter Collected 1205 | 221 247 63 . 80 594 Remotely . | . . . . . . Salvage Created 1210 | . 241 31 . 131 807 Parts 82 | . 25 2 . 2 53 Haulers Intercepted 3 | . 1 . . . 2 Recyclers Shooed 1 | . . . . . 1 Parts Field Recycled . | . . . . . . Retrieved Matter . | . . . . . . Parts Self-Destructed . | . . . . . . Prevented . | . . . . . . Kills | -11 -10 -10 -10 -9 -8 ------- Run | Yrd Mat Min Exi Min Mat Combat Hostiles Destroyed 26 | . 6 1 . 3 16 Guns 11 | . 6 1 . 3 1 Cannons 8 | . . . . . 8 AOE 7 | . . . . . 7 Classes Destroyed 12 | . 5 . . 1 6 Worker 2 | . 1 . . . 1 Builder 3 | . . . . . 3 Hauler 3 | . 1 . . . 2 Recycler 1 | . . . . . 1 Mechanic 1 | . . . . . 1 Operator 1 | . . . . . 1 Watcher 4 | . 1 . . . 3 Swarmer 6 | . 3 . . . 3 Grunt 15 | . 3 1 . 2 9 Duelist 1 | . . . . . 1 Sentry 3 | . . . . . 3 Demolisher 1 | . . . . 1 . Best Kill Streak 6 | . 4 1 . 2 6 Combat Bots Only 3 | . 3 1 . 2 3 Max Kills in Single Turn 4 | . 1 1 . 1 4 Gunslinging . | . . . . . . Exploded 3 | . . . . . 3 Melee . | . . . . . . Uniques/NPCs Destroyed . | . . . . . . Combat | -11 -10 -10 -10 -9 -8 -------- Run | Yrd Mat Min Exi Min Mat Hostile Shots Fired 168 | . 37 . . 22 109 Missed 48 | . 12 . . 7 29 Damage Taken 2001 | . 262 . . 351 1388 Core 260 | . 43 . . 83 134 Absorbed by Shields 12 | . . . . . 12 Core Remaining (%) 74 | 100 . . . 49 . Volleys Fired 135 | . 31 1 . 10 93 Largest 2 | . 2 2 . 2 2 Hottest 83 | . 40 40 . 40 83 Shots Fired 182 | . 62 2 . 20 98 Gun 103 | . 62 2 . 20 19 Cannon 70 | . . . . . 70 Launcher 9 | . . . . . 9 Special . | . . . . . . Kinetic 147 | . 62 2 . 20 63 Thermal 4 | . . . . . 4 Explosive 9 | . . . . . 9 Electromagnetic 22 | . . . . . 22 Robot Hit Streak 12 | . 12 1 . 8 12 Robot Miss Streak 4 | . 3 2 . 4 4 Penetration Max . | . . . . . . Secondary Targets 1 | . . . . . 1 Max Gunslinging Chain 1 | . . . . . 1 Shots Hit Robots 122 | . 40 1 . 13 68 Core Hits 64 | . 16 1 . 6 41 Critical Kills . | . . . . . . Critical Parts Destroyed . | . . . . . . Critical Strikes 1 | . . . . . 1 Blast 1 | . . . . . 1 Melee Attacks . | . . . . . . Impact . | . . . . . . Slashing . | . . . . . . Piercing . | . . . . . . Sneak Attacks . | . . . . . . Combat Hostiles . | . . . . . . Follow-up Attacks . | . . . . . . Damage Inflicted 2967 | . 503 15 . 165 2284 Guns 834 | . 503 15 . 165 151 Cannons 1342 | . . . . . 1342 Explosions 791 | . . . . . 791 Melee . | . . . . . . Ramming . | . . . . . . Kinetic 1634 | . 503 15 . 165 951 Thermal 73 | . . . . . 73 Explosive 763 | . . . . . 763 Electromagnetic 497 | . . . . . 497 Impact . | . . . . . . Slashing . | . . . . . . Piercing . | . . . . . . Highest Corruption 5 | . . . . . 5 Average Corruption 5 | . . . . . 5 Corruption Purged . | . . . . . . Corruption Blocked . | . . . . . . Overload Shots . | . . . . . . Overflow Damage 75 | . . . . . 75 Projectiles 58 | . . . . . 58 Explosions 17 | . . . . . 17 Melee . | . . . . . . Knockbacks 8 | . . . . . 8 Impact . | . . . . . . Kinetic 8 | . . . . . 8 Secondary . | . . . . . . Self-Inflicted Damage 170 | . . . . . 170 Shots 2 | . . . . . 2 Rammed . | . . . . . . Targets Rammed . | . . . . . . Kicked . | . . . . . . Crushed . | . . . . . . Highest Temperature 270 | . 20 . . 21 270 Average Temperature 76 | . 6 . . 9 81 Received Heat Transfer 852 | . 96 . . 81 675 Siege Activations . | . . . . . . Robots Corrupted 1 | . . . . . 1 Combat Hostiles . | . . . . . . Parts Fried 5 | . . . . . 5 Impact Corruptions . | . . . . . . Robots Melted . | . . . . . . Combat Hostiles . | . . . . . . Parts Melted . | . . . . . . Heat Transferred 124 | . . . . . 124 Parts Sabotaged . | . . . . . . Parts Stolen . | . . . . . . Parts Stripped . | . . . . . . Power Chain Reactions 1 | . . . . . 1 Alert | -11 -10 -10 -10 -9 -8 ------- Run | Yrd Mat Min Exi Min Mat Peak Influence 395 | . 273 227 . 80 395 Initial 106 | . . 106 . . 27 Average 161 | . 149 152 . 36 193 Maximum Alert Level 1 | . 1 1 . . 1 Low Security (%) 64 | 100 63 64 . 100 58 Level 1 35 | . 36 35 . . 41 Level 2 . | . . . . . . Level 3 . | . . . . . . Level 4 . | . . . . . . Level 5 . | . . . . . . High Security . | . . . . . . Max Security . | . . . . . . Squads Dispatched 4 | . 1 . . . 3 Investigation . | . . . . . . Extermination . | . . . . . . Reinforcement 4 | . 1 . . . 3 Assault . | . . . . . . Garrison . | . . . . . . Intercept . | . . . . . . Searches Triggered . | . . . . . . Construction Impeded 1 | . . . . . 1 Haulers Reinforced . | . . . . . . Active Scanning Responses . | . . . . . . Cargo Convoy Interrupts . | . . . . . . Stealth | -11 -10 -10 -10 -9 -8 --------- Run | Yrd Mat Min Exi Min Mat Distress Signals 4 | . 2 . . . 2 Communications Jammed . | . . . . . . Distress Signals . | . . . . . . Times Spotted 59 | . 12 4 . 14 29 Peak Tracking Total 11 | . 4 2 . 11 8 Tactical Retreats 5 | . 2 1 . . 2 Traps | -11 -10 -10 -10 -9 -8 ------- Run | Yrd Mat Min Exi Min Mat Traps Triggered . | . . . . . . Indirectly . | . . . . . . Trap Hack Attempts . | . . . . . . Triggered . | . . . . . . Disarmed . | . . . . . . Reprogrammed . | . . . . . . Reused . | . . . . . . Traps Extracted . | . . . . . . Installed . | . . . . . . Triggered . | . . . . . . Machines | -11 -10 -10 -10 -9 -8 ---------- Run | Yrd Mat Min Exi Min Mat Machines Disabled 7 | . 1 . . . 6 Max in Single Turn 3 | . 1 . . . 3 Garrison Access 1 | . . . . . 1 Machines Repaired . | . . . . . . Machines Dismantled . | . . . . . . Machines Sabotaged . | . . . . . . Overloaded Fab Kills . | . . . . . . Hacking | -11 -10 -10 -10 -9 -8 --------- Run | Yrd Mat Min Exi Min Mat Machines Accessed 7 | . 1 . 1 . 5 Terminals 4 | . 1 . . . 3 Fabricators . | . . . . . . Repair Stations . | . . . . . . Recycling Units . | . . . . . . Scanalyzers 1 | . . . . . 1 Garrison Access 1 | . . . . . 1 Total Hacks 13 | . 2 . 1 . 10 Successful 5 | . 2 . 1 . 2 Failed 8 | . . . . . 8 Catastrophic 3 | . . . . . 3 Database Lockouts . | . . . . . . Manual 7 | . 2 . . . 5 Terminals 8 | . 2 . . . 6 Fabricators . | . . . . . . Repair Stations . | . . . . . . Recycling Units . | . . . . . . Scanalyzers 2 | . . . . . 2 Garrison Access 2 | . . . . . 2 Terminal Hacks 3 | . 2 . 1 . . Record 1 | . . . 1 . . Part Schematic 2 | . 2 . . . . Fabricator Hacks . | . . . . . . Repair Station Hacks . | . . . . . . Recycling Unit Hacks . | . . . . . . Scanalyzer 1 | . . . . . 1 Insert Component 1 | . . . . . 1 Garrison Access Hacks 1 | . . . . . 1 Seal Access 1 | . . . . . 1 Unauthorized Hacks . | . . . . . . Terminals . | . . . . . . Fabricators . | . . . . . . Repair Stations . | . . . . . . Recycling Units . | . . . . . . Scanalyzers . | . . . . . . Garrison Access . | . . . . . . Data Cores Recovered 1 | . . . . . 1 Used . | . . . . . . Hacking Detections 4 | . . . . . 4 Full Trace Events . | . . . . . . Feedback Events . | . . . . . . Feedback Blocked . | . . . . . . Robot Schematics Acquired . | . . . . . . Robots Built . | . . . . . . Authchips . | . . . . . . Time . | . . . . . . Total Robot Build Rating . | . . . . . . Part Schematics Acquired 2 | . 2 . . . . Parts Built . | . . . . . . Authchips . | . . . . . . Time . | . . . . . . Total Part Build Rating . | . . . . . . Parts Repaired . | . . . . . . Time . | . . . . . . Parts Recycled . | . . . . . . Recycled Matter . | . . . . . . Retrieved Matter . | . . . . . . Retrieved Components . | . . . . . . Parts Scanalyzed . | . . . . . . Part Schematics Acquired . | . . . . . . Parts Damaged . | . . . . . . Bothacking | -11 -10 -10 -10 -9 -8 ------------ Run | Yrd Mat Min Exi Min Mat Used RIF Installer . | . . . . . . Robots Hacked . | . . . . . . Non-combat . | . . . . . . Combat . | . . . . . . Robot Hacks Applied . | . . . . . . Relay Couplers Released . | . . . . . . Fabnet Peak Effective % . | . . . . . . Robots Rewired . | . . . . . . Allies Hacked . | . . . . . . Hacks Repelled . | . . . . . . Allies | -11 -10 -10 -10 -9 -8 -------- Run | Yrd Mat Min Exi Min Mat Total Allies 1 | . . 1 . . . Largest Group 1 | . . 1 . . . Highest-Rated Group 31 | . . 31 . . . Highest-Rated Ally 31 | . . 31 . . . Total Orders . | . . . . . . Ally Attacks 17 | . . 17 . . . Total Damage 232 | . . 232 . . . Kills 3 | . . 3 . . . Allies Corrupted . | . . . . . . Allies Melted . | . . . . . . Intel | -11 -10 -10 -10 -9 -8 ------- Run | Yrd Mat Min Exi Min Mat Robot Analysis Total . | . . . . . . Derelict Logs Recovered 1 | . . 1 . . . Drone Launches . | . . . . . . Drone Recoveries . | . . . . . . Exploration | -11 -10 -10 -10 -9 -8 ------------- Run | Yrd Mat Min Exi Min Mat Turns Passed 2323 | 69 306 302 617 95 934 Spaces Moved 1220 | 39 121 169 386 36 469 Core 3 | 3 . . . . . Treads 789 | 36 121 169 386 36 41 Legs . | . . . . . . Wheels 367 | . . . . . 367 Hover . | . . . . . . Flight 61 | . . . . . 61 Fastest Speed 50 | 50 160 160 160 160 103 Average Speed 150 | 151 160 160 160 162 136 Slowest Speed 530 | 160 160 160 160 240 530 Overloaded Moves . | . . . . . . Propulsion Burnouts . | . . . . . . Robots Hopped . | . . . . . . Cave-ins Triggered . | . . . . . . Exploration Rate (%) 40 | 5 32 49 88 21 50 Regions Visited 5 Branch Regions 3 Pre-discovered Areas 1 | . . 1 . . . Known Exits Taken . | . . . . . . Unknown Exits Taken 5 | 1 1 1 1 1 . Scrap Searched 1 | . . 1 . . . Spaces Dug . | . . . . . . Terrain Destroyed 78 | . . . . . 78 Melee . | . . . . . . Projectile 5 | . . . . . 5 AOE 73 | . . . . . 73 Terrain Rammed . | . . . . . . Walls Destroyed . | . . . . . . Machines Disabled . | . . . . . . Actions | -11 -10 -10 -10 -9 -8 --------- Run | Yrd Mat Min Exi Min Mat Total 1513 | 46 171 199 385 53 659 Wait 79 | . 10 30 . 6 33 Move 1215 | 38 120 168 385 35 469 Hop . | . . . . . . Pick Up 30 | 2 5 . . . 23 Fast Attach 9 | 6 2 . . . 1 Attach 15 | . . . . . 15 Detach 2 | . . . . . 2 Swap 19 | . 1 . . 2 16 Drop 9 | . 2 . . . 7 Fire 135 | . 31 1 . 10 93 Melee . | . . . . . . Ram . | . . . . . . Kick . | . . . . . . Crush . | . . . . . . Escape Stasis . | . . . . . . Rewire . | . . . . . . Trap . | . . . . . . Miscellaneous . | . . . . . . Route ------- -11/Scrapyard -10/Materials -10/Mines -10/Exiles -9/Mines -8/Materials History --------- Turn | Location | Event 6 | -11/Scrapyard | Discovered new exit (range 15) 70 | -11/Scrapyard | Entered Materials 290 | -10/Materials | Discovered new exit (range 12) 303 | -10/Materials | Build established: Mutant 376 | -10/Materials | Entered Mines 379 | -10/Mines | Received a Mining Laser from a helpful Derelict 466 | -10/Mines | Found a hidden stash of uninstalled traps 670 | -10/Mines | Deemed a non-threat by the Exiles lab entrance 672 | -10/Mines | Discovered new exit (range 5) 678 | -10/Mines | Entered Exiles 678 | -10/Exiles | Found Exiles lab abandoned 1280 | -10/Exiles | Discovered new exit (range 10) 1295 | -10/Exiles | Entered Mines 1363 | -9/Mines | Assembled infested the area 1368 | -9/Mines | Assisted by a Guerilla fighting off Assembled 1368 | -9/Mines | Discovered new exit (range 6) 1390 | -9/Mines | Entered Materials 1390 | -8/Materials | Evolved 4 slots: Propulsion x2, Utility x2 1548 | -8/Materials | Lost 4 parts (2n2w) 2244 | -8/Materials | Lost 4 parts (1n1u2w) 2324 | -8/Materials | Self-destructed Last Messages --------------- 02257_ U-05 Engineer lays Concrete. 02258_ Acquired Lgt. Nuclear Core. 02261_ Acquired Corrupted Katana. 02265_ Acquired 38 matter. 02283_ O-16 Technician uses terminal to summon reinforcements. 02283_ ALERT: Hostiles spotted, dispatching reinforcements to Terminal M002. 02283_ O-16 Technician locks terminal. 02297_ Acquired Adv. Targeting Computer. 02300_ Acquired ECM Suite. 02310_ Connecting with Scanalyzer... 02310_ Integrated Corrupted Katana (+5). 02310_ Complication: FCS attempts to trigger Katana. 02310_ Complication: Katana misfires. 02321_ Critical hit (Burn: +37). 02323_ Imp. Sensor Array destroyed. 02323_ Critical hit (Burn: +37). 02323_ Material Processor disabled. Map ----- +----------------------------------------------------+ | =/ + """##??????????????????????????????????? | | " #% #! """##??????????????????????????????????? | | T #%% # ##??? #???????????????????????????? | | " # # #########???????????????????????????? | | # ############# ##???????????????????????????? | | ### ### ##???????????????????????????? | | # ### [[ ! "" ##???????????????????????????? | | ? + ### [[ "" ##???????????????????????????? | | ? # + [[ T" ##???????????????????????????? | | ?## ### "" ##???????????????????????????? | | ### ### "" ##???????????????????????????? | | ####+#### ! ##???????????????????????????? | | ######/#######???????????????????????????? | | """ / =! ######???????????????????????????? | | """ ##### = ##???????????????????????????????? | | """ #####!*[##???????????????????????????????? | | #####%%=###??????????????????????????????? | | [ """ #####%[ ###??????????????????????????????? | | """ ####%%%= ##??????????????????????????????? | | """ #### ##??????????????????????????????? | | #### ##??????????????????????????????? | | ###+######## ##??????????????????????????????? | | ### ######## ##?????#########????????????????? | | #?????????#### ##################????????????????? | | ##????????#### ########### "" ##????????????????? | | ##??????????## # """ @ ""S ##????????????????? | | ###?????????## # """"" # "" ##????????????????? | | ###?????????## # """"" # ##????????????????? | | ###?????????## # """"" # ##????????????????? | | ##?????????## # "" # ##????????????????? | | ##?????????## # # g [##????????????????? | | ##?????????## #! * ###g####????????????????? | | ###?????????## # + ####????????????????? | | ###?????????## #####Y##### ##??????????????????? | | ##????????? ## ##??????????????????? | | ##????????? # ##??????????????????? | | ##????????? + ##+##+##??????????????????? | | #?????????? # T # #??????????????????? | | #?????????? # * # ????????????????????????? | | #?????????? # ## ????????????????????????? | | #?????????? # ## ????????????????????????? | | #??????????## ##?????????????????????????? | | #??????????## """ ##?????????????????????????? | | #?????????? """ ##?????????????????????????? | | #?????????? """ ##?????????????????????????? | | #????????? ?? ##?????????????????????????? | | ????????? ?? # ?????????????????????????? | | ??????????? "?? # ?????????????????????????? | | ??????????? ??? # ?????????????????????????? | | ?????????????? ??? # ?????????????????????????? | +----------------------------------------------------+ Best States ------------- Heat Dissipation 31 Energy Generation 14 Energy Capacity 275 Matter Stores 300 Matter Capacity 300 Sight Range 16 Robot Scan Range 15 Terrain Scan Density 10 Armor Coverage 225 Evasion (%) 40 Recoil Reduction 2 Item Schematics ----------------- Cargo Storage Unit | -10/Materials | Hacked Huge Storage Unit | -10/Materials | Hacked Robot Schematics ------------------ None Fabricated ------------ Nothing Alien Tech Used ----------------- None Achievements -------------- None Challenges ------------ None Game ------ Seed DecoderFireCorpse Manual? 0 Play Time 00:23:21 Cumulative 117.2 hours Start 2024.06.05 @ 12:57:57 End 2024.06.05 @ 13:22:04 Sessions 1 Manual Loads 0 Difficulty Rogue Special Mode None Game No. 154 Rogue 154 Adventurer 0 Explorer 0 Win Type - Total 1 Types 1/0/0/0/0/0/0/0/0 Lore% 49 Gallery% 53 Achievement% 50 Wizard Run 0 Options --------- Layout 1 ASCII 0 Keyboard 0 Movement Mouse Keybinds 0 Fullscreen 1 Font 32/SmallcapsGlow Map View 50x35 Zoom Use 0% Tactical HUD 1 Map Filters NONE Filters NONE Steam 1 RUN: 369fa5f3-6177-4f6a-af6c-c0351fdad90a